fUSD/lending_fUSD_20250410
["ID","MTS","AMOUNT","RATE_DAILY","PERIOD"]
[357638239,1744263055442,-504.18976748,0.00038356,2]
[357638240,1744263055451,-500.0,0.00038356,2]
[357638241,1744263055460,-812.34,0.00038356,2]
[357638242,1744263055470,-500.0,0.00038356,2]
[357638243,1744263055479,-573.66,0.00038356,2]
[357638244,1744263055488,-23785.76,0.00038356,2]
[357638245,1744263055498,-1000.0,0.00038356,2]
[357638246,1744263055508,-500.0,0.00038356,2]
[357638247,1744263055517,-2083.77,0.00038356,2]
[357638248,1744263055526,-500.0,0.00038356,2]
[357638249,1744263055535,-1281.13,0.00038356,2]
[357638250,1744263055544,-500.0,0.00038356,2]
[357638251,1744263055554,-500.0,0.00038356,2]
[357638252,1744263055563,-1005.53,0.00038356,2]
[357638253,1744263055575,-745.91,0.00038356,2]
[357638254,1744263055584,-2143.43,0.00038356,2]
[357638255,1744263055594,-1089.01,0.00038356,2]
[357638256,1744263055603,-500.0,0.00038356,2]
[357638257,1744263055612,-1159.32,0.00038356,2]
[357638258,1744263055621,-500.0,0.00038356,2]
[357638259,1744263055630,-573.78,0.00038356,2]
[357638260,1744263055639,-500.0,0.00038356,2]
[357638261,1744263055648,-511.6302931,0.00038356,2]
[357638262,1744263055657,-500.0,0.00038356,2]
[357638263,1744263055666,-500.0,0.00038356,2]
[357638264,1744263055675,-500.0,0.00038356,2]
[357638265,1744263055684,-646.02,0.00038356,2]
[357638266,1744263055693,-500.0,0.00038356,2]
[357638267,1744263055702,-504.71913471,0.00038356,2]
[357638268,1744263055712,-566.91,0.00038356,2]
[357638269,1744263055722,-1218.11,0.00038356,2]
[357638270,1744263055732,-500.0,0.00038356,2]
[357638271,1744263055741,-500.0,0.00038356,2]
[357638272,1744263055751,-500.0,0.00038356,2]
[357638273,1744263055760,-29122.28,0.00038356,2]
[357638274,1744263055769,-500.0,0.00038356,2]
[357638275,1744263055778,-500.0,0.00038356,2]
[357638276,1744263055787,-565.92754133,0.00038356,2]
[357638277,1744263055796,-865.9,0.00038356,2]
[357638278,1744263055805,-500.0,0.00038356,2]
[357638279,1744263055816,-500.0,0.00038356,2]
[357638280,1744263055825,-516.84,0.00038356,2]
[357638281,1744263055834,-500.0,0.00038356,2]
[357638282,1744263055843,-695.78,0.00038356,2]
[357638283,1744263055852,-500.0,0.00038356,2]
[357638284,1744263055861,-565.02744473,0.00038356,2]
[357638285,1744263055871,-819.97,0.00038356,2]
[357638286,1744263055880,-500.0,0.00038356,2]
[357638287,1744263055890,-2739.29,0.00038356,2]
[357638288,1744263055899,-500.0,0.00038356,2]
[357638289,1744263055908,-1018.51,0.00038356,2]
[357638290,1744263055917,-500.0,0.00038356,2]
[357638291,1744263055926,-575.63,0.00038356,2]
[357638292,1744263055936,-500.0,0.00038356,2]
[357638293,1744263055945,-519.20271053,0.00038356,2]
[357638294,1744263055954,-500.0,0.00038356,2]
[357638295,1744263055964,-500.0,0.00038356,2]
[357638296,1744263055973,-1378.7,0.00038356,2]
[357638297,1744263055982,-1133.4,0.00038356,2]
[357638298,1744263055992,-500.0,0.00038356,2]
[357638299,1744263056001,-500.0,0.00038356,2]
[357638300,1744263056011,-500.0,0.00038356,2]
[357638301,1744263056020,-522.62319961,0.00038356,2]
[357638302,1744263056029,-501.63065177,0.00038356,2]
[357638303,1744263056039,-832.63,0.00038356,2]
[357638304,1744263056049,-21395.75,0.00038356,2]
[357638305,1744263056059,-500.0,0.00038356,2]
[357638306,1744263056069,-500.0,0.00038356,2]
[357638307,1744263056079,-505.5208243,0.00038356,2]
[357638308,1744263056088,-500.0,0.00038356,2]
[357638309,1744263056097,-500.0,0.00038356,2]
[357638310,1744263056107,-500.0,0.00038356,2]
[357638311,1744263056116,-500.0,0.00038356,2]
[357638312,1744263056126,-2087.42,0.00038356,2]
[357638313,1744263056135,-1170.86,0.00038356,2]
[357638314,1744263056144,-500.0,0.00038356,2]
[357638315,1744263056154,-3014.44,0.00038356,2]
[357638316,1744263056163,-752.73,0.00038356,2]
[357638317,1744263056173,-500.0,0.00038356,2]
[357638318,1744263056182,-500.0,0.00038356,2]
[357638319,1744263056191,-561.72845133,0.00038356,2]
[357638320,1744263056201,-500.0,0.00038356,2]
[357638321,1744263056210,-500.0,0.00038356,2]
[357638322,1744263056219,-507.66080046,0.00038356,2]
[357638323,1744263056229,-40463.18228198,0.00038356,2]
[357638324,1744263056912,852.0,0.00017679,2]
[357638325,1744263057368,-525.18300191,0.00042091,56]
[357638326,1744263057578,-150.0,0.00048222,30]
[357638327,1744263057603,-4627.91537581,0.00048222,30]
[357638328,1744263057630,-999.0,0.00049315,120]
[357638329,1744263057663,-150.38608828,0.000497,40]
[357638330,1744263057694,-316.84550867,0.00049999,31]
[357638331,1744263057722,-622.90890979,0.00049999,120]
[357638332,1744263057748,-622.90890979,0.00049999,120]
[357638333,1744263057775,-622.90890979,0.00049999,120]
[357638334,1744263057800,-622.90890979,0.00049999,120]
[357638335,1744263057826,-622.90890979,0.00049999,120]
[357638336,1744263057853,-622.90890979,0.00049999,120]
[357638337,1744263057879,-622.90890979,0.00049999,120]
[357638338,1744263057907,-622.90890979,0.00049999,120]
[357638339,1744263057933,-622.90890979,0.00049999,120]
[357638340,1744263057960,-622.90890979,0.00049999,120]
[357638341,1744263057987,-622.90890979,0.00049999,120]
[357638342,1744263058014,-622.90890979,0.00049999,120]
[357638343,1744263058040,-622.90890979,0.00049999,120]
[357638344,1744263058067,-622.90890979,0.00049999,120]
[357638345,1744263058094,-622.90890979,0.00049999,120]
[357638346,1744263058121,-622.90890979,0.00049999,120]
[357638347,1744263058147,-622.90890979,0.00049999,120]
[357638348,1744263058174,-622.90890979,0.00049999,120]
[357638349,1744263058201,-622.90890979,0.00049999,120]
[357638350,1744263058227,-622.90890979,0.00049999,120]
[357638351,1744263058256,-622.90890979,0.00049999,120]
[357638352,1744263058283,-622.90890979,0.00049999,120]
[357638353,1744263058309,-622.90890979,0.00049999,120]
[357638354,1744263058335,-622.90890979,0.00049999,120]
[357638355,1744263058365,-622.90890979,0.00049999,120]
[357638356,1744263058392,-622.90890979,0.00049999,120]
[357638357,1744263058419,-622.90890979,0.00049999,120]
[357638358,1744263058447,-622.90890979,0.00049999,120]
[357638359,1744263058474,-622.90890979,0.00049999,120]
[357638360,1744263058500,-622.90890979,0.00049999,120]
[357638361,1744263058527,-622.90890979,0.00049999,120]
[357638362,1744263058553,-622.90890979,0.00049999,120]
[357638363,1744263058790,-622.90890979,0.00049999,120]
[357638364,1744263058834,-622.90890979,0.00049999,120]
[357638365,1744263058861,-622.90890979,0.00049999,120]
[357638366,1744263058889,-622.90890979,0.00049999,120]
[357638367,1744263058915,-622.90890979,0.00049999,120]
[357638368,1744263058941,-622.90890979,0.00049999,120]
[357638369,1744263058968,-622.90890979,0.00049999,120]
[357638370,1744263058994,-622.90890979,0.00049999,120]
[357638371,1744263059020,-622.90890979,0.00049999,120]
[357638372,1744263059047,-622.90890979,0.00049999,120]
[357638373,1744263059073,-622.90890979,0.00049999,120]
[357638374,1744263059100,-622.90890979,0.00049999,120]
[357638375,1744263059126,-622.90890979,0.00049999,120]
[357638376,1744263059152,-622.90890979,0.00049999,120]
[357638377,1744263059179,-622.90890979,0.00049999,120]
[357638378,1744263059206,-622.90890979,0.00049999,120]
[357638379,1744263059233,-10261.39,0.0005,60]
[357638380,1744263059260,-999.0,0.00052054,120]
[357638381,1744263059284,-5037.97475236,0.00052333,41]
[357638382,1744263059311,-10261.39,0.00054,60]
[357638383,1744263059340,-999.0,0.00054794,120]
[357638384,1744263059365,-500.0,0.00054794,120]
[357638385,1744263059389,-500.0,0.00054794,120]
[357638386,1744263059415,-500.0,0.00054794,120]
[357638387,1744263059440,-500.0,0.00054794,120]
[357638388,1744263059467,-1625.36,0.00055,60]
[357638389,1744263059494,-999.0,0.00057534,120]
[357638390,1744263059518,-349.4,0.00057534,120]
[357638391,1744263059544,-10261.39,0.00058,60]
[357638392,1744263059568,-5000.0,0.0006,30]
[357638393,1744263059595,-999.0,0.00060273,120]
[357638394,1744263059619,-1625.36,0.00061,60]
[357638395,1744263059642,-2354.44879042,0.000611,120]
[357638396,1744263059671,-10261.39,0.00063,60]
[357638397,1744263059697,-999.0,0.00063013,120]
[357638398,1744263059724,-999.0,0.00065753,120]
[357638399,1744263059750,-150.0,0.00065889,120]
[357638400,1744263059776,-150.0,0.00065927,120]
[357638401,1744263059800,-1000.0,0.00065999,120]
[357638402,1744263059830,-441.22,0.00065999,90]
[357638403,1744263059855,-173.86656902,0.00066,30]
[357638404,1744263059879,-26698.65,0.00066,120]
[357638405,1744263059903,-300.0,0.00066,120]
[357638406,1744263059931,-1000000.0,0.00066,120]
[357638407,1744263059955,-1356912.13620039,0.00066,120]
[357638408,1744263059980,-10000.0,0.00066,120]
[357638409,1744263060006,-250.0,0.00066,120]
[357638410,1744263060032,-4238.31645724,0.00066,120]
[357638411,1744263060057,-150.0,0.00066,120]
[357638412,1744263060086,-44629.0,0.00066,120]
[357638413,1744263060113,-562.37663108,0.00066,120]
[357638414,1744263060141,-5000.0,0.00066,120]
[357638415,1744263060171,-1625.36,0.00066,60]
[357638416,1744263060203,-1000.0,0.00066272,30]
[357638417,1744263060233,-2000.0,0.000663,120]
[357638418,1744263060261,-168.0,0.00066452,120]
[357638419,1744263060293,-442850.0129549,0.000665,120]
[357638420,1744263060745,-1000.0,0.000199,2]
[357638421,1744263060755,-852.0,0.00020679,2]
[357638422,1744263060764,-852.0,0.00023679,2]
[357638423,1744263060773,-852.0,0.00026679,2]
[357638424,1744263060783,-685.19980076,0.00034247,7]
[357638425,1744263060793,-685.19980076,0.00034247,7]
[357638426,1744263060802,-1006.45762648,0.00038356,2]
[357638427,1744263060893,-57745.90433085,0.00038356,2]
[357638428,1744263061197,-685.19980076,0.00034247,7]
[357638429,1744263061208,-685.19980076,0.00034247,7]
[357638430,1744263061218,-68051.00576069,0.00038356,2]
[357638431,1744263061228,-510.82160321,0.00038356,2]
[357638432,1744263061237,-1973.41,0.00038356,2]
[357638433,1744263061247,-506.38448348,0.00038356,2]
[357638434,1744263061256,-514.89,0.00038356,2]
[357638435,1744263061266,-500.0,0.00038356,2]
[357638436,1744263061275,-2641.61,0.00038356,2]
[357638437,1744263061285,-500.0,0.00038356,2]
[357638438,1744263061298,-501.12627371,0.00038356,2]
[357638439,1744263061306,-500.0,0.00038356,2]
[357638440,1744263061314,-500.0,0.00038356,2]
[357638441,1744263061324,-503.82968258,0.00038356,2]
[357638442,1744263061333,-500.0,0.00038356,2]
[357638443,1744263061342,-500.0,0.00038356,2]
[357638444,1744263061352,-573.09,0.00038356,2]
[357638445,1744263061363,-507.15207566,0.00038356,2]
[357638446,1744263061373,-4651.38,0.00038356,2]
[357638447,1744263061382,-500.0,0.00038356,2]
[357638448,1744263061392,-500.0,0.00038356,2]
[357638449,1744263061403,-1570.69,0.00038356,2]
[357638450,1744263061412,-500.0,0.00038356,2]
[357638451,1744263061422,-500.0,0.00038356,2]
[357638452,1744263061431,-500.0,0.00038356,2]
[357638453,1744263061442,-500.0,0.00038356,2]
[357638454,1744263061452,-500.0,0.00038356,2]
[357638455,1744263061461,-500.0,0.00038356,2]
[357638456,1744263061471,-646.27,0.00038356,2]
[357638457,1744263061481,-504.8554976,0.00038356,2]
[357638458,1744263061491,-1967.15,0.00038356,2]
[357638459,1744263061501,-500.0,0.00038356,2]
[357638460,1744263061511,-973.2,0.00038356,2]
[357638461,1744263061520,-500.0,0.00038356,2]
[357638462,1744263061530,-500.0,0.00038356,2]
[357638463,1744263061539,-161.957797,0.00038356,2]
[357638464,1744263061548,-508.77705244,0.00038356,2]
[357638465,1744263061557,-500.0,0.00038356,2]
[357638466,1744263061567,-500.0,0.00038356,2]
[357638467,1744263061579,-517.05180691,0.00038356,2]
[357638468,1744263061588,-163.286,0.00038356,2]
[357638469,1744263061598,-1133.28,0.00038356,2]
[357638470,1744263061607,-500.0,0.00038356,2]
[357638471,1744263061616,-552.73,0.00038356,2]
[357638472,1744263061625,-505.67110643,0.00038356,2]
[357638473,1744263061635,-1290.575287,0.00038356,2]
[357638474,1744263061645,-535.78,0.00038356,2]
[357638475,1744263061654,-1438.14,0.00038356,2]
[357638476,1744263061664,-500.0,0.00038356,2]
[357638477,1744263061884,-500.0,0.00038356,2]
[357638478,1744263061894,-987.76,0.00038356,2]
[357638479,1744263061913,-500.0,0.00038356,2]
[357638480,1744263061926,-500.0,0.00038356,2]
[357638481,1744263061937,-598.72664386,0.00038356,2]
[357638482,1744263061947,-878.74,0.00038356,2]
[357638483,1744263061957,-500.42849867,0.00038356,2]
[357638484,1744263061966,-500.0,0.00038356,2]
[357638485,1744263061976,-868.47,0.00038356,2]
[357638486,1744263061986,-307.3079775,0.00038356,2]
[357638487,1744263061996,-2000.0,0.00038437,3]
[357638488,1744263062007,-170.86,0.00038443,2]
[357638489,1744263062019,-550.95,0.00038443,2]
[357638490,1744263062030,-240.45592727,0.00038499,2]
[357638491,1744263062040,-383.0,0.000386,2]
[357638492,1744263062051,-537.467557,0.000386,27]
[357638493,1744263062063,-203.14,0.00038612,2]
[357638494,1744263062081,-999.36,0.00038629,2]
[357638495,1744263062091,-999.36,0.00038629,2]
[357638496,1744263062101,-999.36,0.00038629,2]
[357638497,1744263062111,-500.0,0.00038629,2]
[357638498,1744263062121,-500.0,0.00038629,2]
[357638499,1744263062132,-500.0,0.00038629,2]
[357638500,1744263062142,-150.0,0.00038629,3]
[357638501,1744263062152,-500.0,0.00038629,2]
[357638502,1744263062162,-500.0,0.00038629,2]
[357638503,1744263062172,-500.0,0.00038629,2]
[357638504,1744263062182,-500.0,0.00038629,2]
[357638505,1744263062193,-500.0,0.00038629,2]
[357638506,1744263062202,-500.0,0.00038629,2]
[357638507,1744263062212,-500.0,0.00038629,2]
[357638508,1744263062222,-500.0,0.00038629,2]
[357638509,1744263062231,-500.0,0.00038629,2]
[357638510,1744263062241,-500.0,0.00038629,2]
[357638511,1744263062251,-500.0,0.00038629,2]
[357638512,1744263062261,-500.0,0.0003863,2]
[357638513,1744263062270,-500.0,0.0003863,2]
[357638514,1744263062279,-500.0,0.0003863,2]
[357638515,1744263062289,-500.0,0.0003863,2]
[357638516,1744263062299,-562.67056579,0.0003863,2]
[357638517,1744263062309,-514.52138309,0.0003863,2]
[357638518,1744263062319,-500.0,0.0003863,2]
[357638519,1744263062328,-500.0,0.0003863,2]
[357638520,1744263062338,-500.0,0.0003863,2]
[357638521,1744263062348,-500.0,0.0003863,2]
[357638522,1744263062360,-500.0,0.0003863,2]
[357638523,1744263062371,-500.0,0.0003863,2]
[357638524,1744263062380,-506.87788297,0.0003863,2]
[357638525,1744263062391,-504.88260091,0.0003863,2]
[357638526,1744263062403,-500.0,0.0003863,2]
[357638527,1744263062412,-500.0,0.0003863,2]
[357638528,1744263062422,-506.55870461,0.0003863,2]
[357638529,1744263062432,-193.27687217,0.0003863,2]
[357638530,1744263062443,-500.0,0.0003863,2]
[357638531,1744263062453,-504.0103865,0.0003863,2]
[357638532,1744263062463,-500.0,0.0003863,2]
[357638533,1744263062473,-500.0,0.0003863,2]
[357638534,1744263062482,-500.0,0.0003863,2]
[357638535,1744263062492,-500.0,0.0003863,2]
[357638536,1744263062501,-500.0,0.0003863,2]
[357638537,1744263062512,-500.0,0.0003863,2]
[357638538,1744263062521,-500.0,0.0003863,2]
[357638539,1744263062531,-500.0,0.0003863,2]
[357638540,1744263062541,-500.0,0.0003863,2]
[357638541,1744263062551,-500.0,0.0003863,2]
[357638542,1744263062560,-500.0,0.0003863,2]
[357638543,1744263062571,-500.0,0.0003863,2]
[357638544,1744263062581,-476.46214064,0.0003863,2]
[357638545,1744263062591,-500.0,0.0003863,2]
[357638546,1744263062601,-500.0,0.0003863,2]
[357638547,1744263062611,-500.0,0.0003863,2]
[357638548,1744263062621,-500.0,0.0003863,2]
[357638549,1744263062631,-500.0,0.0003863,2]
[357638550,1744263062640,-500.0,0.0003863,2]
[357638551,1744263062650,-500.0,0.0003863,2]
[357638552,1744263062661,-500.0,0.0003863,2]
[357638553,1744263062671,-500.0,0.0003863,2]
[357638554,1744263062680,-500.0,0.0003863,2]
[357638555,1744263062690,-500.0,0.0003863,2]
[357638556,1744263062699,-500.0,0.0003863,2]
[357638557,1744263062709,-500.0,0.0003863,2]
[357638558,1744263062718,-1057.12,0.0003863,2]
[357638559,1744263062728,-500.0,0.0003863,2]
[357638560,1744263062737,-500.0,0.0003863,2]
[357638561,1744263062746,-635.15330895,0.0003863,2]
[357638562,1744263062756,-500.0,0.0003863,2]
[357638563,1744263062765,-500.0,0.0003863,2]
[357638564,1744263062775,-500.0,0.0003863,2]
[357638565,1744263062784,-500.0,0.0003863,2]
[357638566,1744263062793,-500.0,0.0003863,2]
[357638567,1744263062803,-648.87,0.0003863,2]
[357638568,1744263062813,-946.59,0.0003863,2]
[357638569,1744263062823,-500.0,0.0003863,2]
[357638570,1744263062833,-500.0,0.0003863,2]
[357638571,1744263062843,-534.85,0.0003863,2]
[357638572,1744263062852,-500.0,0.0003863,2]
[357638573,1744263062862,-522.72953709,0.0003863,2]
[357638574,1744263062872,-641.6,0.0003863,2]
[357638575,1744263062883,-533.43834756,0.0003863,2]
[357638576,1744263062892,-478.62655701,0.0003863,2]
[357638577,1744263062902,-500.0,0.0003863,2]
[357638578,1744263062911,-500.0,0.0003863,2]
[357638579,1744263062921,-500.0,0.0003863,2]
[357638580,1744263062931,-500.0,0.0003863,2]
[357638581,1744263062940,-577.82552978,0.0003863,2]
[357638582,1744263062950,-500.0,0.0003863,2]
[357638583,1744263062959,-500.0,0.0003863,2]
[357638584,1744263062969,-500.0,0.0003863,2]
[357638585,1744263062978,-500.0,0.0003863,2]
[357638586,1744263062988,-705.12,0.0003863,2]
[357638587,1744263062997,-500.0,0.0003863,2]
[357638588,1744263063007,-500.0,0.0003863,2]
[357638589,1744263063016,-500.0,0.0003863,2]
[357638590,1744263063026,-500.0,0.0003863,2]
[357638591,1744263063036,-643.74231637,0.0003863,2]
[357638592,1744263063047,-500.0,0.0003863,2]
[357638593,1744263063057,-500.0,0.0003863,2]
[357638594,1744263063067,-500.0,0.0003863,2]
[357638595,1744263063078,-500.0,0.0003863,2]
[357638596,1744263063088,-500.0,0.0003863,2]
[357638597,1744263063098,-500.0,0.0003863,2]
[357638598,1744263063108,-500.0,0.0003863,2]
[357638599,1744263063118,-643.93,0.0003863,2]
[357638600,1744263063128,-500.0,0.0003863,2]
[357638601,1744263063139,-520.46367226,0.0003863,2]
[357638602,1744263063150,-500.0,0.0003863,2]
[357638603,1744263063161,-500.0,0.0003863,2]
[357638604,1744263063172,-500.0,0.0003863,2]
[357638605,1744263063184,-500.0,0.0003863,2]
[357638606,1744263063196,-2000.0,0.0003863,2]
[357638607,1744263063209,-500.0,0.0003863,2]
[357638608,1744263063221,-536.93317343,0.0003863,2]
[357638609,1744263063232,-848.85,0.0003863,2]
[357638610,1744263063246,-644.23,0.0003863,2]
[357638611,1744263063263,-500.0,0.0003863,2]
[357638612,1744263063282,-500.0,0.0003863,2]
[357638613,1744263063294,-784.44,0.0003863,2]
[357638614,1744263063311,-500.0,0.0003863,2]
[357638615,1744263063332,-500.0,0.0003863,2]
[357638616,1744263063343,-500.0,0.0003863,2]
[357638617,1744263063354,-500.0,0.0003863,2]
[357638618,1744263063368,-500.0,0.0003863,2]
[357638619,1744263063379,-892.08,0.0003863,2]
[357638620,1744263063390,-500.0,0.0003863,2]
[357638621,1744263063402,-500.0,0.0003863,2]
[357638622,1744263063414,-500.0,0.0003863,2]
[357638623,1744263063424,-500.0,0.0003863,2]
[357638624,1744263063435,-203.66043402,0.0003863,2]
[357638625,1744263063446,-500.0,0.0003863,2]
[357638626,1744263063456,-500.0,0.0003863,2]
[357638627,1744263063466,-500.0,0.0003863,2]
[357638628,1744263063476,-500.0,0.0003863,2]
[357638629,1744263063486,-500.0,0.0003863,2]
[357638630,1744263063496,-529.26,0.0003863,2]
[357638631,1744263063505,-521.54,0.0003863,2]
[357638632,1744263063515,-500.0,0.0003863,2]
[357638633,1744263063525,-500.0,0.0003863,2]
[357638634,1744263063536,-500.0,0.0003863,2]
[357638635,1744263063546,-721.04,0.0003863,2]
[357638636,1744263063556,-524.04,0.0003863,2]
[357638637,1744263063566,-193.21450154,0.0003863,2]
[357638638,1744263063576,-500.0,0.0003863,2]
[357638639,1744263063586,-500.0,0.0003863,2]
[357638640,1744263063596,-500.0,0.0003863,2]
[357638641,1744263063605,-500.0,0.0003863,2]
[357638642,1744263063615,-500.0,0.0003863,2]
[357638643,1744263063624,-506.89,0.0003863,2]
[357638644,1744263063634,-500.0,0.0003863,2]
[357638645,1744263063644,-500.0,0.0003863,2]
[357638646,1744263063654,-500.0,0.0003863,2]
[357638647,1744263063663,-438.46597939,0.0003863,2]
[357638648,1744263063673,-500.0,0.0003863,2]
[357638649,1744263063683,-500.0,0.0003863,2]
[357638650,1744263063693,-600.37,0.0003863,2]
[357638651,1744263063702,-540.97,0.0003863,2]
[357638652,1744263063712,-500.0,0.0003863,2]
[357638653,1744263063722,-524.0339647,0.0003863,2]
[357638654,1744263063733,-500.0,0.0003863,2]
[357638655,1744263063743,-346.2,0.0003863,2]
[357638656,1744263063752,-500.0,0.0003863,2]
[357638657,1744263063762,-500.0,0.0003863,2]
[357638658,1744263063772,-500.0,0.0003863,2]
[357638659,1744263063781,-500.0,0.0003863,2]
[357638660,1744263063791,-500.0,0.0003863,2]
[357638661,1744263063801,-500.0,0.0003863,2]
[357638662,1744263063810,-564.45,0.0003863,2]
[357638663,1744263063820,-500.0,0.0003863,2]
[357638664,1744263063831,-639.34,0.0003863,2]
[357638665,1744263063840,-732.06,0.0003863,2]
[357638666,1744263063850,-1095.5,0.0003863,2]
[357638667,1744263063859,-500.0,0.0003863,2]
[357638668,1744263063868,-500.0,0.0003863,2]
[357638669,1744263063878,-680.52,0.0003863,2]
[357638670,1744263063888,-713.03,0.0003863,2]
[357638671,1744263063897,-635.60884375,0.0003863,2]
[357638672,1744263063907,-500.0,0.0003863,2]
[357638673,1744263063916,-201.24655247,0.0003863,2]
[357638674,1744263063926,-500.0,0.0003863,2]
[357638675,1744263063936,-500.0,0.0003863,2]
[357638676,1744263063946,-429.17401806,0.0003863,2]
[357638677,1744263063956,-500.0,0.0003863,2]
[357638678,1744263063965,-500.0,0.0003863,2]
[357638679,1744263063975,-500.0,0.0003863,2]
[357638680,1744263063985,-500.0,0.0003863,2]
[357638681,1744263063995,-953.15,0.0003863,2]
[357638682,1744263064004,-500.0,0.0003863,2]
[357638683,1744263064014,-500.0,0.0003863,2]
[357638684,1744263064024,-500.0,0.0003863,2]
[357638685,1744263064034,-500.0,0.0003863,2]
[357638686,1744263064046,-523.90764332,0.0003863,2]
[357638687,1744263064056,-500.0,0.0003863,2]
[357638688,1744263064066,-517.89849462,0.0003863,2]
[357638689,1744263064077,-500.0,0.0003863,2]
[357638690,1744263064087,-541.63630842,0.0003863,2]
[357638691,1744263064096,-733.83,0.0003863,2]
[357638692,1744263064107,-500.0,0.0003863,2]
[357638693,1744263064117,-500.0,0.0003863,2]
[357638694,1744263064126,-500.0,0.0003863,2]
[357638695,1744263064136,-500.0,0.0003863,2]
[357638696,1744263064146,-500.0,0.0003863,2]
[357638697,1744263064155,-500.0,0.0003863,2]
[357638698,1744263064164,-500.0,0.0003863,2]
[357638699,1744263064174,-500.0,0.0003863,2]
[357638700,1744263064184,-567.2296575,0.0003863,2]
[357638701,1744263064193,-500.0,0.0003863,2]
[357638702,1744263064203,-500.0,0.0003863,2]
[357638703,1744263064213,-516.01338002,0.0003863,2]
[357638704,1744263064222,-500.0,0.0003863,2]
[357638705,1744263064233,-508.29476478,0.0003863,2]
[357638706,1744263064242,-1006.39,0.0003863,2]
[357638707,1744263064252,-522.7062139,0.0003863,2]
[357638708,1744263064262,-500.0,0.0003863,2]
[357638709,1744263064271,-500.0,0.0003863,2]
[357638710,1744263064280,-500.0,0.0003863,2]
[357638711,1744263064290,-500.0,0.0003863,2]
[357638712,1744263064300,-500.0,0.0003863,2]
[357638713,1744263064309,-492.7547307,0.0003863,2]
[357638714,1744263064319,-500.0,0.0003863,2]
[357638715,1744263064329,-500.0,0.0003863,2]
[357638716,1744263064338,-500.0,0.0003863,2]
[357638717,1744263064348,-773.01,0.0003863,2]
[357638718,1744263064359,-769.58,0.0003863,2]
[357638719,1744263064371,-500.0,0.0003863,2]
[357638720,1744263064380,-500.0,0.0003863,2]
[357638721,1744263064390,-1427.56,0.0003863,2]
[357638722,1744263064399,-500.0,0.0003863,2]
[357638723,1744263064409,-500.0,0.0003863,2]
[357638724,1744263064418,-500.0,0.0003863,2]
[357638725,1744263064427,-541.16,0.0003863,2]
[357638726,1744263064439,-500.0,0.0003863,2]
[357638727,1744263064449,-500.0,0.0003863,2]
[357638728,1744263064458,-500.0,0.0003863,2]
[357638729,1744263064467,-426.02576313,0.0003863,2]
[357638730,1744263064477,-1299.27,0.0003863,2]
[357638731,1744263064487,-500.0,0.0003863,2]
[357638732,1744263064496,-500.0,0.0003863,2]
[357638733,1744263064506,-500.0,0.0003863,2]
[357638734,1744263064515,-500.0,0.0003863,2]
[357638735,1744263064525,-500.0,0.0003863,2]
[357638736,1744263064535,-520.8355612,0.0003863,2]
[357638737,1744263064544,-708.54,0.0003863,2]
[357638738,1744263064553,-795.01,0.0003863,2]